Cogmind - Beta 10.2 @@@ ROGUE MODE // 2021.02.01 @ 20:41:51 Player: whisper Result: Destroyed by as-84592 with Assembled Rifle Performance ------------- Evolutions (0) 0 Regions Visited (2) 400 Robots Destroyed (19) 95 Value Destroyed (490) 490 Prototype IDs (2) 40 Alien Tech Used (0) 0 Bonus (0) 0 TOTAL SCORE: 1025 Bonus ------- None Cogmind --------- Core Integrity 0/250 Matter 285/300 Energy 100/100 System Corruption 0% Temperature Cool (0) Movement Treading (160) Location -10/Mines Parts ------- > --- POWER (1) -------- (None) > --- PROPULSION (2) --- Light Treads Light Treads > --- UTILITY (2) ------ Large Storage Unit Large Storage Unit > --- WEAPON (2) ------- (None) > --- INVENTORY (16) --- Light Ion Engine Light Treads Aluminum Leg Improved Heat Sink Targeting Computer Targeting Computer Targeting Computer Hardened Light Armor Plating Hardened Light Armor Plating Hardened Light Armor Plating Hardened Light Armor Plating Hacking Suite EM Pulse Gun EM Pulse Gun Flail Peak State ------------ > --- POWER ------------ Light Nuclear Core > --- PROPULSION ------- Aluminum Leg Aluminum Leg > --- UTILITY ---------- Large Storage Unit Large Storage Unit > --- WEAPON ----------- Particle Gun Flail > --- INVENTORY -------- Light Ion Engine Light Treads Light Treads Light Treads Improved Heat Sink Targeting Computer Targeting Computer Targeting Computer Hardened Light Armor Plating Hardened Light Armor Plating Hardened Light Armor Plating Hardened Light Armor Plating Hacking Suite EM Pulse Gun Small Laser [Rating: 13] Favorites ----------- Power Light Nuclear Core Engine Ion Engine Power Core Light Nuclear Core Propulsion Aluminum Leg Treads Light Treads Leg Aluminum Leg Utility Large Storage Unit Storage Large Storage Unit Processor Targeting Computer Weapon EM Pulse Gun Energy Gun EM Pulse Gun Ballistic Gun Assault Rifle Impact Weapon Flail Build | -11 -10 -10 ------- Run | Scr Mat Min Slots Evolved . | . . . Power . | . . . Propulsion . | . . . Utility . | . . . Weapon . | . . . Parts Attached 24 | 6 9 9 Power 3 | 1 1 1 Engine 2 | 1 . 1 Core 1 | . 1 . Reactor . | . . . Propulsion 8 | 2 2 4 Treads 2 | . . 2 Leg 6 | 2 2 2 Wheel . | . . . Hover . | . . . Flight . | . . . Utility 4 | 1 3 . Device . | . . . Storage 3 | 1 2 . Processor 1 | . 1 . Hackware . | . . . Protection . | . . . Artifact . | . . . Weapon 9 | 2 3 4 Energy Gun 7 | 2 1 4 Energy Cannon . | . . . Ballistic Gun 1 | . 1 . Ballistic Cannon . | . . . Launcher . | . . . Special Weapon . | . . . Impact Weapon 1 | . 1 . Slashing Weapon . | . . . Piercing Weapon . | . . . Special Melee Weapon . | . . . Unidentified Prototypes . | . . . Parts Lost 8 | . 3 5 Power 2 | . 1 1 Propulsion 1 | . . 1 Utility . | . . . Weapon 5 | . 2 3 Highest Loss Streak 4 | . 3 4 Average Slot Usage (%) 98 | . 98 94 Engine 5 | . 4 6 Core 8 | . 9 7 Leg 27 | . 28 25 Storage 19 | . 18 28 Processor 8 | . 9 . Energy Gun 10 | . 9 15 Ballistic Gun 8 | . 9 3 Impact Weapon 7 | . 8 3 Naked Turns . | . . . Heaviest Build 41 | 13 41 41 Greatest Support 40 | 20 20 40 Greatest Overweight (x) 3 | . 2 3 Average Overweight (x) . | . . 1 Largest Inventory Capacity 16 | 6 16 16 Average Capacity 10 | 4 10 16 Most Carried 16 | 6 16 16 Average Carried 9 | 3 8 15 Final Capacity 16 | 6 16 16 Final Carried 16 | 6 16 15 Class Distribution -------------------- 93% | Mutant 6% | Scavenger-Mutant Dominant Class ---------------- Mutant | -10/Materials Scavenger-Mutant | -10/Mines Resources | -11 -10 -10 ----------- Run | Scr Mat Min Matter Collected 418 | 195 158 65 Remotely . | . . . Salvage Created 756 | . 583 173 Parts 39 | . 28 11 Haulers Intercepted 2 | . 2 . Recyclers Shooed 2 | . 2 . Parts Field Recycled . | . . . Retrieved Matter . | . . . Parts Self-Destructed . | . . . Prevented . | . . . Kills | -11 -10 -10 ------- Run | Scr Mat Min Combat Hostiles Destroyed 13 | . 7 6 Melee 2 | . . 2 Guns 10 | . 6 4 AOE 1 | . 1 . Classes Destroyed 6 | . 5 1 Hauler 2 | . 2 . Recycler 1 | . 1 . Operator 1 | . 1 . Watcher 2 | . 2 . Swarmer 3 | . . 3 Grunt 10 | . 7 3 Best Kill Streak 4 | . 4 3 Combat Bots Only 4 | . 4 3 Max Kills in Single Turn 1 | . 1 1 Gunslinging . | . . . Exploded 1 | . 1 . Melee 1 | . . 1 Uniques/NPCs Destroyed . | . . . Combat | -11 -10 -10 -------- Run | Scr Mat Min Damage Taken 1344 | . 298 1046 Core 254 | . 12 242 Absorbed by Shields . | . . . Core Remaining (%) 100 | 100 . . Volleys Fired 53 | . 36 17 Largest 2 | . 2 2 Hottest 105 | . 80 105 Shots Fired 94 | . 66 28 Gun 94 | . 66 28 Cannon . | . . . Launcher . | . . . Special . | . . . Kinetic 6 | . 6 . Thermal 28 | . . 28 Explosive . | . . . Electromagnetic 60 | . 60 . Robot Hit Streak 9 | . 9 9 Robot Miss Streak 3 | . 2 3 Penetration Max . | . . . Secondary Targets 1 | . . 1 Max Gunslinging Chain 1 | . . 1 Shots Hit Robots 72 | . 48 24 Core Hits 32 | . 23 9 Critical Hits . | . . . Critical Kills . | . . . Critical Parts Destroyed . | . . . Melee Attacks 13 | . 5 8 Impact 13 | . 5 8 Slashing . | . . . Piercing . | . . . Sneak Attacks . | . . . Combat Hostiles . | . . . Follow-up Attacks . | . . . Damage Inflicted 1197 | . 781 416 Guns 868 | . 605 263 Cannons . | . . . Explosions 120 | . 120 . Melee 209 | . 56 153 Ramming . | . . . Kinetic 63 | . 63 . Thermal 383 | . 120 263 Explosive . | . . . Electromagnetic 542 | . 542 . Impact 209 | . 56 153 Slashing . | . . . Piercing . | . . . Highest Corruption . | . . . Average Corruption . | . . . Corruption Purged . | . . . Overload Shots . | . . . Overflow Damage 15 | . 12 3 Projectiles . | . . . Explosions 1 | . 1 . Melee 14 | . 11 3 Knockbacks 1 | . . 1 Impact 1 | . . 1 Kinetic . | . . . Secondary . | . . . Self-Inflicted Damage . | . . . Shots . | . . . Rammed . | . . . Targets Rammed . | . . . Kicked . | . . . Crushed . | . . . Highest Temperature 336 | . 306 336 Average Temperature 115 | . 98 144 Received Heat Transfer 444 | . 165 279 Siege Activations . | . . . Robots Corrupted . | . . . Combat Hostiles . | . . . Parts Fried 4 | . 4 . Impact Corruptions 3 | . 2 1 Robots Melted . | . . . Combat Hostiles . | . . . Parts Melted 1 | . . 1 Heat Transferred 760 | . 200 560 Parts Sabotaged . | . . . Parts Stolen . | . . . Parts Stripped . | . . . Power Chain Reactions 2 | . 2 . Missiles Intercepted . | . . . Alert | -11 -10 -10 ------- Run | Scr Mat Min Peak Influence 204 | . 204 175 Initial . | . . . Average 65 | . 61 107 Maximum Alert Level 1 | . 1 . Low Security (%) 89 | 100 87 100 Level 1 10 | . 12 . Level 2 . | . . . Level 3 . | . . . Level 4 . | . . . Level 5 . | . . . High Security . | . . . Max Security . | . . . Squads Dispatched 1 | . 1 . Investigation . | . . . Extermination . | . . . Reinforcement 1 | . 1 . Assault . | . . . Garrison . | . . . Intercept . | . . . Construction Impeded . | . . . Haulers Reinforced . | . . . Stealth | -11 -10 -10 --------- Run | Scr Mat Min Distress Signals 2 | . 2 . Communications Jammed . | . . . Distress Signals . | . . . Times Spotted 35 | . 18 17 Peak Tracking Total 10 | . 4 10 Tactical Retreats 2 | . . 2 Traps | -11 -10 -10 ------- Run | Scr Mat Min Traps Triggered . | . . . Indirectly . | . . . Trap Hack Attempts . | . . . Triggered . | . . . Disarmed . | . . . Reprogrammed . | . . . Reused . | . . . Traps Extracted . | . . . Installed . | . . . Triggered . | . . . Machines | -11 -10 -10 ---------- Run | Scr Mat Min Machines Disabled 1 | . 1 . Max in Single Turn 1 | . 1 . Machines Sabotaged . | . . . Garrisons Compromised . | . . . Overloaded Fab Kills . | . . . Fab Network Shutdowns . | . . . Hacking | -11 -10 -10 --------- Run | Scr Mat Min Machines Accessed 8 | . 8 . Terminals 5 | . 5 . Fabricators . | . . . Repair Stations 1 | . 1 . Recycling Units 2 | . 2 . Scanalyzers . | . . . Garrison Access . | . . . Total Hacks 20 | . 20 . Successful 12 | . 12 . Failed 8 | . 8 . Catastrophic . | . . . Database Lockouts . | . . . Manual 9 | . 9 . Terminals 14 | . 14 . Fabricators . | . . . Repair Stations 2 | . 2 . Recycling Units 4 | . 4 . Scanalyzers . | . . . Garrison Access . | . . . Terminal Hacks 4 | . 4 . Robot Analysis 2 | . 2 . Prototype ID Bank 1 | . 1 . Zone Layout 1 | . 1 . Fabricator Hacks . | . . . Repair Station Hacks 2 | . 2 . Scan Component 1 | . 1 . Repair 1 | . 1 . Recycling Unit Hacks 3 | . 3 . Report Inventory 2 | . 2 . Retrieve Components 1 | . 1 . Scanalyzer . | . . . Garrison Access Hacks . | . . . Unauthorized Hacks 3 | . 3 . Terminals 3 | . 3 . Assimilate 1 | . 1 . Botnet 1 | . 1 . Operators 1 | . 1 . Fabricators . | . . . Repair Stations . | . . . Recycling Units . | . . . Scanalyzers . | . . . Garrison Access . | . . . Data Cores Recovered . | . . . Used . | . . . Hacking Detections 7 | . 7 . Full Trace Events . | . . . Feedback Events . | . . . Feedback Blocked . | . . . Robot Schematics Acquired . | . . . Robots Built . | . . . Matter . | . . . Time . | . . . Total Robot Build Rating . | . . . Part Schematics Acquired . | . . . Parts Built . | . . . Matter . | . . . Time . | . . . Total Part Build Rating . | . . . Parts Repaired 1 | . 1 . Time 26 | . 26 . Parts Recycled . | . . . Recycled Matter . | . . . Retrieved Matter . | . . . Retrieved Components 9 | . 9 . Parts Scanalyzed . | . . . Part Schematics Acquired . | . . . Parts Damaged . | . . . Bothacking | -11 -10 -10 ------------ Run | Scr Mat Min Used RIF Installer . | . . . Robots Hacked . | . . . Non-combat . | . . . Combat . | . . . Robot Hacks Applied . | . . . Relay Couplers Released . | . . . Robots Rewired . | . . . Allies Hacked . | . . . Hacks Repelled . | . . . Allies | -11 -10 -10 -------- Run | Scr Mat Min Total Allies 1 | . 1 . Largest Group 1 | . 1 1 Highest-Rated Group 10 | . 10 10 Highest-Rated Ally 10 | . 10 10 Total Orders . | . . . Ally Attacks . | . . . Total Damage . | . . . Kills . | . . . Allies Corrupted 1 | . . 1 Allies Melted . | . . . Intel | -11 -10 -10 ------- Run | Scr Mat Min Robot Analysis Total 2 | . 2 . Derelict Logs Recovered . | . . . Drone Launches . | . . . Drone Recoveries . | . . . Exploration | -11 -10 -10 ------------- Run | Scr Mat Min Turns Passed 1545 | 63 1258 224 Spaces Moved 893 | 48 755 90 Core 12 | 12 . . Treads 12 | . . 12 Legs 869 | 36 755 78 Wheels . | . . . Hover . | . . . Flight . | . . . Fastest Speed 50 | 50 120 150 Average Speed 145 | 102 146 157 Slowest Speed 210 | 120 180 210 Overloaded Moves . | . . . Propulsion Burnouts . | . . . Robots Hopped . | . . . Cave-ins Triggered . | . . . Exploration Rate (%) 39 | 4 89 26 Regions Visited 2 Branch Regions 1 Pre-discovered Areas . | . . . Known Exits Taken . | . . . Unknown Exits Taken 2 | 1 1 . Scrap Searched 1 | . . 1 Spaces Dug 3 | . 3 . Terrain Destroyed 7 | . 7 . Melee 3 | . 3 . Projectile . | . . . AOE 4 | . 4 . Terrain Rammed . | . . . Walls Destroyed . | . . . Machines Disabled . | . . . Actions | -11 -10 -10 --------- Run | Scr Mat Min Total 1030 | 59 838 133 Wait 10 | . 10 . Move 891 | 47 754 90 Hop . | . . . Pick Up 25 | 6 16 3 Fast Attach 11 | 6 3 2 Attach 4 | . 2 2 Detach 1 | . 1 . Swap 9 | . 4 5 Drop 13 | . 7 6 Fire 53 | . 36 17 Melee 13 | . 5 8 Ram . | . . . Kick . | . . . Crush . | . . . Escape Stasis . | . . . Rewire . | . . . Trap . | . . . Miscellaneous . | . . . Route ------- -11/Scrapyard -10/Materials (discovered 4 exits: [*Mat x2] / [*Min x2]) -10/Mines History --------- Turn | Location | Event 6 | -11/Scrapyard | Discovered new exit (range 16) 64 | -11/Scrapyard | Entered Materials 273 | -10/Materials | Discovered new exit (range 18) 319 | -10/Materials | Build established: Mutant 410 | -10/Materials | Discovered new exit (range 15) 412 | -10/Materials | Repaired EM Pulse Gun? 527 | -10/Materials | Lost 3 parts (1p2w) 604 | -10/Materials | Discovered new exit (range 9) 698 | -10/Materials | Discovered new exit (range 16) 1322 | -10/Materials | Entered Mines 1322 | -10/Mines | Accompanied by 1 ally 1362 | -10/Mines | Met a Derelict bent on vengeance 1489 | -10/Mines | Assembled infested the area 1521 | -10/Mines | Core integrity fell below 50% 1535 | -10/Mines | Core integrity fell below 20% 1546 | -10/Mines | Destroyed by as-84592 with Assembled Rifle Last Messages --------------- 01471_ Searching scrap... 01471_ Found 38 Matter. 01471_ Found EM Pulse Gun. 01471_ Found 38 Matter. 01473_ K-01 Serf collects debris. 01476_ Dropped Sml. Laser. 01476_ Acquired EM Pulse Gun. 01477_ Acquired 10 matter. 01478_ K-01 Serf collects debris. 01489_ ALERT: Infestation in the mines, dispatching Demolisher response squad. 01489_ K-01 Serf collects debris. 01509_ Sml. Laser destroyed. 01512_ K-01 Serf destroyed. 01514_ Sml. Laser destroyed. 01519_ Knocked back. 01520_ Aluminum Leg destroyed. 01524_ Knocked back. 01536_ K-01 Serf destroyed. 01541_ Lgt. Ion Engine destroyed. Map ----- +----------------------------------------------------+ | ???????????????????????# $ #????????????## | | ???????????????????????#########! #????????#??## | | ???????????????????????????????#% #????????# ## | | ???????????????????????????????# #??????### | | ???????????????????????????????# #??????# ??# | | ??????????????????????????????## #??????# #??# | | ?????????????????????????????## ##?????# #### | | ?????????????????????????????# ####### # | | ?????????????????????????????# %[ | | ?????????????????????????????# % | | ?????????????????????????????## #### % | | ??????????????????????????????## #### = | | ??????????????????????????????## *% | | ?????????????????????????????## a | | ??????????????????????????#### #### ### | | ?????????????????????????## ##??# #?## ### | | ?????????????????????????# ##?????#??# #?##= | | ?????????????????????????# a ##?????????# #??# | | ?????????????????????????# ##????????? #??# | | ??????????????????????#### #?????????### *% | | ?????????????????????## a #???????????# =%= | | ?????????????????????# a #???????????# =## | | ?????????????????????# ##?????????# ?? | | ?????????????????????# aaaa #????????# ?? | | ?????????????????????## aa #????? ??? | | ??????????????????????## @# #???### ??? | | ???????????????????????# ###### #????# ???? | | ???????????????????????# #?????# #???# ????? | | ??????????????????????? ?????? ????# ????? | | ?????????????????????? ??????# ?????#?????? | | ????????????????????? """ ??????? ???????????? | | ????????????????????? """ #?????????????????????? | | ???????????????????? """ ##?????????????????????? | | ???????????????????## #??????????????????????? | | ????????????????????#??? #??????????????????????? | | ???????????????????????? #??????????????????????? | | ???????????????????????? #???????????????????????? | | ???????????????????????? ????????????????????????? | | ???????????????????????? ????????????????????????? | | ???????????????????????? ????????????????????????? | | ???????????????????????? ????????????????????????? | | ?????????????????????????????????????????????????? | | ?????????????????????????????????????????????????? | | ?????????????????????????????????????????????????? | | ?????????????????????????????????????????????????? | | ?????????????????????????????????????????????????? | | ?????????????????????????????????????????????????? | | ?????????????????????????????????????????????????? | | ?????????????????????????????????????????????????? | | ?????????????????????????????????????????????????? | +----------------------------------------------------+ Best States ------------- Heat Dissipation 25 Energy Generation 14 Energy Capacity 250 Matter Stores 300 Matter Capacity 300 Sight Range 16 Terrain Scan Density 10 Evasion (%) 40 Targeting Accuracy 5 Recoil Reduction 2 Item Schematics ----------------- None Robot Schematics ------------------ None Fabricated ------------ Nothing Alien Tech Used ----------------- None Achievements -------------- None Challenges ------------ None Game ------ Seed WardroneLauncherReplicator Manual? 0 Play Time 00:17:37 Cumulative 83.9 hours Start 2021.02.01 @ 20:26:58 End 2021.02.01 @ 20:41:51 Sessions 1 Manual Loads 0 Difficulty Rogue Special Mode None Game No. 29 Rogue 29 Adventurer 0 Explorer 0 Win Type - Total 2 Types 2/0/0/0/0/0/0/0/0 Lore% 52 Gallery% 53 Achievement% 44 Wizard Run 0 Options --------- ASCII 1 Keyboard 1 Movement Vi Keybinds 0 Fullscreen 2 Font 24/Smallcaps Map View 76x50 Tactical HUD 1 Map Filters NONE Filters NONE Steam X RUN: 269fd770-3791-490d-b81a-b6cbe06cfce3